Workbook

Sheet LEE PRIMERO
A2: MODELO FINANCIERO — RUTA DEL EMPRENDIMIENTO 2026
A3: Cámara de Comercio del Huila · Seccional Sur · Módulo 2: Finanzas básicas
A5: Este archivo es la versión SIN INTERNET del Laboratorio Financiero de
A6: rutadelemprendimiento.site/finanzas.php — misma lógica, mismos resultados.
A8: CÓMO USARLO:
A9: 1. Llena SOLO las celdas amarillas, en orden: 1 PRODUCTOS - 2 NOMINA Y GASTOS - 3 ACTIVOS - 4 CREDITO.
A10: 2. La hoja 5 RESULTADOS calcula todo sola: punto de equilibrio, VAN, TIR, proyeccion a 5 anos y recuperacion.
A11: 3. La hoja 6 REGISTRO DIARIO es tu cuaderno de ingresos y egresos del mes: usala TODOS los dias.
A13: LAS HOJAS ESTAN PROTEGIDAS:
A14: Solo puedes escribir en las celdas amarillas. Las formulas y resultados estan bloqueados para que
A15: no se danen por accidente. No necesitas ninguna clave para usar el archivo.
A17: Cifras de referencia al 2 de agosto de 2026: SMMLV $1.750.905 - factor prestacional 53,76% -
A18: IPC anual 6,14% - usura consumo 29,66% EA. Verificalas antes de firmar un credito.
A19: Herramienta pedagogica: no reemplaza la asesoria de un contador.

Sheet 1 PRODUCTOS
A1: TUS PRODUCTOS Y SU COSTEO — la receta de UNA unidad
A2: Tipos de item: Materia prima · Insumo · Empaque · Mercancia comprada · Servicio por unidad · Mano de obra por unidad · Jornal · Transporte · Otro
A3: Margen objetivo para el precio sugerido (%): | D3: 40% | E3: ← Comercial 30 · Agro 35 · Produccion 40 · Servicios 50. El precio sugerido es referencia: tu decides el precio final.
A5: PRODUCTO 1 — nombre: | C5: Café tostado 500 g
A6: Tipo de ítem | B6: ¿Qué es? | C6: Unidad de medida | D6: Cantidad por unidad | E6: Costo de esa unidad | F6: Subtotal
A7: Materia prima | B7: Café pergamino | C7: kg | D7: 0.55 | E7: $21,818 | F7: =IF(N(D7)*N(E7)=0,"",D7*E7) -> $12,000
A8: Servicio por unidad | B8: Trilla y tueste | C8: unidad | D8: 1.00 | E8: $3,000 | F8: $3,000
A9: Empaque | B9: Bolsa y etiqueta | C9: unidad | D9: 1.00 | E9: $1,800 | F9: $1,800
E13: COSTO VARIABLE por unidad: | F13: =SUM(F7:F12) -> $16,800
A14: Precio SUGERIDO (según margen objetivo): | C14: =IF(F13>0,ROUND(F13/(1-$D$3/100),-2),"") -> $28,000 | D14: Tu PRECIO de venta (acéptalo o cámbialo): | F14: $28,000
A15: Margen que trabajarías con ese precio: | C15: =IF(N(F14)>0,(F14-F13)/F14*100,"") -> 40.0% | D15: Ventas actuales (unds/mes): | F15: 300
A16: Capacidad máxima (unds/mes). Por máquina: unds/hora × horas/día × días. Por personas: unds/persona/día × personas × días: | F16: 600
A18: PRODUCTO 2 — nombre:
A19: Tipo de ítem | B19: ¿Qué es? | C19: Unidad de medida | D19: Cantidad por unidad | E19: Costo de esa unidad | F19: Subtotal
F20: =IF(N(D20)*N(E20)=0,"",D20*E20) -> 
E26: COSTO VARIABLE por unidad: | F26: =SUM(F20:F25) -> $0
A27: Precio SUGERIDO (según margen objetivo): | C27: =IF(F26>0,ROUND(F26/(1-$D$3/100),-2),"") ->  | D27: Tu PRECIO de venta (acéptalo o cámbialo):
A28: Margen que trabajarías con ese precio: | C28: =IF(N(F27)>0,(F27-F26)/F27*100,"") ->  | D28: Ventas actuales (unds/mes):
A29: Capacidad máxima (unds/mes). Por máquina: unds/hora × horas/día × días. Por personas: unds/persona/día × personas × días:
A31: PRODUCTO 3 — nombre:
A32: Tipo de ítem | B32: ¿Qué es? | C32: Unidad de medida | D32: Cantidad por unidad | E32: Costo de esa unidad | F32: Subtotal
F33: =IF(N(D33)*N(E33)=0,"",D33*E33) -> 
E39: COSTO VARIABLE por unidad: | F39: =SUM(F33:F38) -> $0
A40: Precio SUGERIDO (según margen objetivo): | C40: =IF(F39>0,ROUND(F39/(1-$D$3/100),-2),"") ->  | D40: Tu PRECIO de venta (acéptalo o cámbialo):
A41: Margen que trabajarías con ese precio: | C41: =IF(N(F40)>0,(F40-F39)/F40*100,"") ->  | D41: Ventas actuales (unds/mes):
A42: Capacidad máxima (unds/mes). Por máquina: unds/hora × horas/día × días. Por personas: unds/persona/día × personas × días:
A44: PRODUCTO 4 — nombre:
A45: Tipo de ítem | B45: ¿Qué es? | C45: Unidad de medida | D45: Cantidad por unidad | E45: Costo de esa unidad | F45: Subtotal
F46: =IF(N(D46)*N(E46)=0,"",D46*E46) -> 
E52: COSTO VARIABLE por unidad: | F52: =SUM(F46:F51) -> $0
A53: Precio SUGERIDO (según margen objetivo): | C53: =IF(F52>0,ROUND(F52/(1-$D$3/100),-2),"") ->  | D53: Tu PRECIO de venta (acéptalo o cámbialo):
A54: Margen que trabajarías con ese precio: | C54: =IF(N(F53)>0,(F53-F52)/F53*100,"") ->  | D54: Ventas actuales (unds/mes):
A55: Capacidad máxima (unds/mes). Por máquina: unds/hora × horas/día × días. Por personas: unds/persona/día × personas × días:
A57: PRODUCTO 5 — nombre:
A58: Tipo de ítem | B58: ¿Qué es? | C58: Unidad de medida | D58: Cantidad por unidad | E58: Costo de esa unidad | F58: Subtotal
F59: =IF(N(D59)*N(E59)=0,"",D59*E59) -> 
E65: COSTO VARIABLE por unidad: | F65: =SUM(F59:F64) -> $0
A66: Precio SUGERIDO (según margen objetivo): | C66: =IF(F65>0,ROUND(F65/(1-$D$3/100),-2),"") ->  | D66: Tu PRECIO de venta (acéptalo o cámbialo):
A67: Margen que trabajarías con ese precio: | C67: =IF(N(F66)>0,(F66-F65)/F66*100,"") ->  | D67: Ventas actuales (unds/mes):
A68: Capacidad máxima (unds/mes). Por máquina: unds/hora × horas/día × días. Por personas: unds/persona/día × personas × días:

Sheet 2 NOMINA Y GASTOS
A1: TU EQUIPO DE TRABAJO
A2: Laboral suma automáticamente el 53,76% de prestaciones y seguridad social. Incluye TU propio sueldo.
A4: Cargo | B4: Vinculación | C4: Valor $ (mes o por jornal) | D4: Jornales al mes (solo si aplica) | E4: Costo mensual real | F4: ¿Dónde trabaja?
A5: Yo (mi sueldo) | B5: Mi propio sueldo | C5: $1,200,000 | E5: =IF(N(C5)=0,"",IF(B5="Laboral",C5*1.5376,IF(B5="Jornal",C5*N(D5),C5))) -> $1,200,000 | F5: Admón. y ventas (gasto)
A6: Recolector | B6: Jornal | C6: $60,000 | D6: 4 | E6: $240,000 | F6: Producción (costo)
D13: TOTAL NÓMINA MENSUAL: | E13: =SUM(E5:E12) -> $1,440,000
A15: TUS GASTOS FIJOS DEL MES
A16: La nómina de arriba y la cuota del crédito (hoja 4) se suman automáticamente: no las repitas aquí.
A18: Arriendo del local o lote | B18: $800,000
A19: Servicios públicos | B19: $250,000
A20: Internet y celular
A21: Publicidad
A22: Transporte y domicilios fijos | B22: $150,000
A23: Papelería y aseo
A24: Mantenimiento
A25: Impuestos y tasas fijas
A26: Cuotas de créditos YA existentes
A27: Otros gastos fijos | B27: $100,000
A28: TOTAL RUBROS: | B28: =SUM(B18:B27) -> $1,300,000
A29: TOTAL FIJOS (rubros + nómina): | B29: =B28+E13 -> $2,740,000

Sheet 3 ACTIVOS
A1: TUS ACTIVOS: ¿ya lo tienes o de verdad debes comprarlo?
A2: Solo lo que COMPRAS sale de tu bolsillo. Pero TODO se desgasta: la depreciación se calcula según la vida útil.
A4: Activo | B4: Categoría | C4: ¿Ya lo tienes? | D4: Valor $ | E4: Vida útil (años) | F4: Depreciación / mes | H4: Vida útil (años)
A5: Tostadora | B5: Maquinaria y equipo | C5: Debo comprarlo | D5: $6,000,000 | E5: =IF(B5="","",INDEX($I$5:$I$10,MATCH(B5,$H$5:$H$10,0))) -> 10 | F5: =IF(OR(N(D5)=0,B5=""),"",D5/(E5*12)) -> $50,000 | H5: Maquinaria y equipo | I5: 10
A6: Molino | B6: Maquinaria y equipo | C6: Ya lo tengo | D6: $1,500,000 | E6: 10 | F6: $12,500 | H6: Herramientas | I6: 5
A7: Selladora | B7: Herramientas | C7: Debo comprarlo | D7: $400,000 | E7: 5 | F7: $6,667 | H7: Muebles y enseres | I7: 10
H8: Equipos de cómputo | I8: 5
H9: Vehículos | I9: 5
H10: Construcciones y adecuaciones | I10: 20
C14: Inversión en COMPRAS: | D14: =SUMIF(C5:C12,"Debo comprarlo",D5:D12) -> $6,400,000 | E14: Depreciación total/mes: | F14: =SUM(F5:F12) -> $69,167
A16: Gastos diferidos (registro, licencias, INVIMA, publicidad de apertura): | D16: $1,500,000
A17: Capital de trabajo (inventario inicial + caja; sugerido: 2 meses de tus fijos): | D17: $2,000,000
A18: INVERSIÓN TOTAL: | D18: =D14+D16+D17 -> $9,900,000

Sheet 4 CREDITO
A1: TU CRÉDITO (si aplica)
A3: Monto del crédito: | B3: $8,000,000
A4: Tasa de interés MENSUAL (%): | B4: 2.00
A5: Plazo (meses): | B5: 36
A7: Cuota mensual: | B7: =IF(N(B3)*N(B5)=0,0,IF(B4=0,B3/B5,B3*(B4/100)/(1-(1+B4/100)^-B5))) -> $313,863
A8: Tasa efectiva anual equivalente: | B8: =((1+B4/100)^12-1)*100 -> 26.8%
A9: Total que pagarás: | B9: =B7*B5 -> $11,299,062
A10: Solo intereses: | B10: =B9-B3 -> $3,299,062
A11: Usura consumo vigente (ago-2026): 29,66% EA — si tu tasa EA la supera, es ilegal.
A13: Mes | B13: Cuota | C13: Interés | D13: Abono a capital | E13: Saldo
A14: =IF(1<=$B$5,1,"") -> 1 | B14: =IF(1<=$B$5,$B$7,"") -> $313,863 | C14: =IF(1<=$B$5,$B$3*$B$4/100,"") -> $160,000 | D14: =IF(1<=$B$5,B14-C14,"") -> $153,863 | E14: =IF(1<=$B$5,$B$3-D14,"") -> $7,846,137
A15: =IF(2<=$B$5,2,"") -> 2 | B15: =IF(2<=$B$5,$B$7,"") -> $313,863 | C15: =IF(2<=$B$5,E14*$B$4/100,"") -> $156,923 | D15: =IF(2<=$B$5,B15-C15,"") -> $156,940 | E15: =IF(2<=$B$5,E14-D15,"") -> $7,689,197
A16: =IF(3<=$B$5,3,"") -> 3 | B16: =IF(3<=$B$5,$B$7,"") -> $313,863 | C16: =IF(3<=$B$5,E15*$B$4/100,"") -> $153,784 | D16: =IF(3<=$B$5,B16-C16,"") -> $160,079 | E16: =IF(3<=$B$5,E15-D16,"") -> $7,529,118
A17: =IF(4<=$B$5,4,"") -> 4 | B17: =IF(4<=$B$5,$B$7,"") -> $313,863 | C17: =IF(4<=$B$5,E16*$B$4/100,"") -> $150,582 | D17: =IF(4<=$B$5,B17-C17,"") -> $163,280 | E17: =IF(4<=$B$5,E16-D17,"") -> $7,365,838
A18: =IF(5<=$B$5,5,"") -> 5 | B18: =IF(5<=$B$5,$B$7,"") -> $313,863 | C18: =IF(5<=$B$5,E17*$B$4/100,"") -> $147,317 | D18: =IF(5<=$B$5,B18-C18,"") -> $166,546 | E18: =IF(5<=$B$5,E17-D18,"") -> $7,199,292
A19: =IF(6<=$B$5,6,"") -> 6 | B19: =IF(6<=$B$5,$B$7,"") -> $313,863 | C19: =IF(6<=$B$5,E18*$B$4/100,"") -> $143,986 | D19: =IF(6<=$B$5,B19-C19,"") -> $169,877 | E19: =IF(6<=$B$5,E18-D19,"") -> $7,029,415
A20: =IF(7<=$B$5,7,"") -> 7 | B20: =IF(7<=$B$5,$B$7,"") -> $313,863 | C20: =IF(7<=$B$5,E19*$B$4/100,"") -> $140,588 | D20: =IF(7<=$B$5,B20-C20,"") -> $173,275 | E20: =IF(7<=$B$5,E19-D20,"") -> $6,856,140
A21: =IF(8<=$B$5,8,"") -> 8 | B21: =IF(8<=$B$5,$B$7,"") -> $313,863 | C21: =IF(8<=$B$5,E20*$B$4/100,"") -> $137,123 | D21: =IF(8<=$B$5,B21-C21,"") -> $176,740 | E21: =IF(8<=$B$5,E20-D21,"") -> $6,679,400
A22: =IF(9<=$B$5,9,"") -> 9 | B22: =IF(9<=$B$5,$B$7,"") -> $313,863 | C22: =IF(9<=$B$5,E21*$B$4/100,"") -> $133,588 | D22: =IF(9<=$B$5,B22-C22,"") -> $180,275 | E22: =IF(9<=$B$5,E21-D22,"") -> $6,499,125
A23: =IF(10<=$B$5,10,"") -> 10 | B23: =IF(10<=$B$5,$B$7,"") -> $313,863 | C23: =IF(10<=$B$5,E22*$B$4/100,"") -> $129,983 | D23: =IF(10<=$B$5,B23-C23,"") -> $183,880 | E23: =IF(10<=$B$5,E22-D23,"") -> $6,315,245
A24: =IF(11<=$B$5,11,"") -> 11 | B24: =IF(11<=$B$5,$B$7,"") -> $313,863 | C24: =IF(11<=$B$5,E23*$B$4/100,"") -> $126,305 | D24: =IF(11<=$B$5,B24-C24,"") -> $187,558 | E24: =IF(11<=$B$5,E23-D24,"") -> $6,127,687
A25: =IF(12<=$B$5,12,"") -> 12 | B25: =IF(12<=$B$5,$B$7,"") -> $313,863 | C25: =IF(12<=$B$5,E24*$B$4/100,"") -> $122,554 | D25: =IF(12<=$B$5,B25-C25,"") -> $191,309 | E25: =IF(12<=$B$5,E24-D25,"") -> $5,936,378
A26: =IF(13<=$B$5,13,"") -> 13 | B26: =IF(13<=$B$5,$B$7,"") -> $313,863 | C26: =IF(13<=$B$5,E25*$B$4/100,"") -> $118,728 | D26: =IF(13<=$B$5,B26-C26,"") -> $195,135 | E26: =IF(13<=$B$5,E25-D26,"") -> $5,741,243
A27: =IF(14<=$B$5,14,"") -> 14 | B27: =IF(14<=$B$5,$B$7,"") -> $313,863 | C27: =IF(14<=$B$5,E26*$B$4/100,"") -> $114,825 | D27: =IF(14<=$B$5,B27-C27,"") -> $199,038 | E27: =IF(14<=$B$5,E26-D27,"") -> $5,542,205
A28: =IF(15<=$B$5,15,"") -> 15 | B28: =IF(15<=$B$5,$B$7,"") -> $313,863 | C28: =IF(15<=$B$5,E27*$B$4/100,"") -> $110,844 | D28: =IF(15<=$B$5,B28-C28,"") -> $203,019 | E28: =IF(15<=$B$5,E27-D28,"") -> $5,339,186
A29: =IF(16<=$B$5,16,"") -> 16 | B29: =IF(16<=$B$5,$B$7,"") -> $313,863 | C29: =IF(16<=$B$5,E28*$B$4/100,"") -> $106,784 | D29: =IF(16<=$B$5,B29-C29,"") -> $207,079 | E29: =IF(16<=$B$5,E28-D29,"") -> $5,132,107
A30: =IF(17<=$B$5,17,"") -> 17 | B30: =IF(17<=$B$5,$B$7,"") -> $313,863 | C30: =IF(17<=$B$5,E29*$B$4/100,"") -> $102,642 | D30: =IF(17<=$B$5,B30-C30,"") -> $211,221 | E30: =IF(17<=$B$5,E29-D30,"") -> $4,920,886
A31: =IF(18<=$B$5,18,"") -> 18 | B31: =IF(18<=$B$5,$B$7,"") -> $313,863 | C31: =IF(18<=$B$5,E30*$B$4/100,"") -> $98,418 | D31: =IF(18<=$B$5,B31-C31,"") -> $215,445 | E31: =IF(18<=$B$5,E30-D31,"") -> $4,705,441
A32: =IF(19<=$B$5,19,"") -> 19 | B32: =IF(19<=$B$5,$B$7,"") -> $313,863 | C32: =IF(19<=$B$5,E31*$B$4/100,"") -> $94,109 | D32: =IF(19<=$B$5,B32-C32,"") -> $219,754 | E32: =IF(19<=$B$5,E31-D32,"") -> $4,485,687
A33: =IF(20<=$B$5,20,"") -> 20 | B33: =IF(20<=$B$5,$B$7,"") -> $313,863 | C33: =IF(20<=$B$5,E32*$B$4/100,"") -> $89,714 | D33: =IF(20<=$B$5,B33-C33,"") -> $224,149 | E33: =IF(20<=$B$5,E32-D33,"") -> $4,261,538
A34: =IF(21<=$B$5,21,"") -> 21 | B34: =IF(21<=$B$5,$B$7,"") -> $313,863 | C34: =IF(21<=$B$5,E33*$B$4/100,"") -> $85,231 | D34: =IF(21<=$B$5,B34-C34,"") -> $228,632 | E34: =IF(21<=$B$5,E33-D34,"") -> $4,032,906
A35: =IF(22<=$B$5,22,"") -> 22 | B35: =IF(22<=$B$5,$B$7,"") -> $313,863 | C35: =IF(22<=$B$5,E34*$B$4/100,"") -> $80,658 | D35: =IF(22<=$B$5,B35-C35,"") -> $233,205 | E35: =IF(22<=$B$5,E34-D35,"") -> $3,799,701
A36: =IF(23<=$B$5,23,"") -> 23 | B36: =IF(23<=$B$5,$B$7,"") -> $313,863 | C36: =IF(23<=$B$5,E35*$B$4/100,"") -> $75,994 | D36: =IF(23<=$B$5,B36-C36,"") -> $237,869 | E36: =IF(23<=$B$5,E35-D36,"") -> $3,561,833
A37: =IF(24<=$B$5,24,"") -> 24 | B37: =IF(24<=$B$5,$B$7,"") -> $313,863 | C37: =IF(24<=$B$5,E36*$B$4/100,"") -> $71,237 | D37: =IF(24<=$B$5,B37-C37,"") -> $242,626 | E37: =IF(24<=$B$5,E36-D37,"") -> $3,319,206
A38: =IF(25<=$B$5,25,"") -> 25 | B38: =IF(25<=$B$5,$B$7,"") -> $313,863 | C38: =IF(25<=$B$5,E37*$B$4/100,"") -> $66,384 | D38: =IF(25<=$B$5,B38-C38,"") -> $247,479 | E38: =IF(25<=$B$5,E37-D38,"") -> $3,071,728
A39: =IF(26<=$B$5,26,"") -> 26 | B39: =IF(26<=$B$5,$B$7,"") -> $313,863 | C39: =IF(26<=$B$5,E38*$B$4/100,"") -> $61,435 | D39: =IF(26<=$B$5,B39-C39,"") -> $252,428 | E39: =IF(26<=$B$5,E38-D39,"") -> $2,819,299
A40: =IF(27<=$B$5,27,"") -> 27 | B40: =IF(27<=$B$5,$B$7,"") -> $313,863 | C40: =IF(27<=$B$5,E39*$B$4/100,"") -> $56,386 | D40: =IF(27<=$B$5,B40-C40,"") -> $257,477 | E40: =IF(27<=$B$5,E39-D40,"") -> $2,561,823
A41: =IF(28<=$B$5,28,"") -> 28 | B41: =IF(28<=$B$5,$B$7,"") -> $313,863 | C41: =IF(28<=$B$5,E40*$B$4/100,"") -> $51,236 | D41: =IF(28<=$B$5,B41-C41,"") -> $262,626 | E41: =IF(28<=$B$5,E40-D41,"") -> $2,299,196
A42: =IF(29<=$B$5,29,"") -> 29 | B42: =IF(29<=$B$5,$B$7,"") -> $313,863 | C42: =IF(29<=$B$5,E41*$B$4/100,"") -> $45,984 | D42: =IF(29<=$B$5,B42-C42,"") -> $267,879 | E42: =IF(29<=$B$5,E41-D42,"") -> $2,031,317
A43: =IF(30<=$B$5,30,"") -> 30 | B43: =IF(30<=$B$5,$B$7,"") -> $313,863 | C43: =IF(30<=$B$5,E42*$B$4/100,"") -> $40,626 | D43: =IF(30<=$B$5,B43-C43,"") -> $273,236 | E43: =IF(30<=$B$5,E42-D43,"") -> $1,758,081
A44: =IF(31<=$B$5,31,"") -> 31 | B44: =IF(31<=$B$5,$B$7,"") -> $313,863 | C44: =IF(31<=$B$5,E43*$B$4/100,"") -> $35,162 | D44: =IF(31<=$B$5,B44-C44,"") -> $278,701 | E44: =IF(31<=$B$5,E43-D44,"") -> $1,479,380
A45: =IF(32<=$B$5,32,"") -> 32 | B45: =IF(32<=$B$5,$B$7,"") -> $313,863 | C45: =IF(32<=$B$5,E44*$B$4/100,"") -> $29,588 | D45: =IF(32<=$B$5,B45-C45,"") -> $284,275 | E45: =IF(32<=$B$5,E44-D45,"") -> $1,195,104
A46: =IF(33<=$B$5,33,"") -> 33 | B46: =IF(33<=$B$5,$B$7,"") -> $313,863 | C46: =IF(33<=$B$5,E45*$B$4/100,"") -> $23,902 | D46: =IF(33<=$B$5,B46-C46,"") -> $289,961 | E46: =IF(33<=$B$5,E45-D46,"") -> $905,144
A47: =IF(34<=$B$5,34,"") -> 34 | B47: =IF(34<=$B$5,$B$7,"") -> $313,863 | C47: =IF(34<=$B$5,E46*$B$4/100,"") -> $18,103 | D47: =IF(34<=$B$5,B47-C47,"") -> $295,760 | E47: =IF(34<=$B$5,E46-D47,"") -> $609,384
A48: =IF(35<=$B$5,35,"") -> 35 | B48: =IF(35<=$B$5,$B$7,"") -> $313,863 | C48: =IF(35<=$B$5,E47*$B$4/100,"") -> $12,188 | D48: =IF(35<=$B$5,B48-C48,"") -> $301,675 | E48: =IF(35<=$B$5,E47-D48,"") -> $307,709
A49: =IF(36<=$B$5,36,"") -> 36 | B49: =IF(36<=$B$5,$B$7,"") -> $313,863 | C49: =IF(36<=$B$5,E48*$B$4/100,"") -> $6,154 | D49: =IF(36<=$B$5,B49-C49,"") -> $307,709 | E49: =IF(36<=$B$5,E48-D49,"") -> $0
A50: =IF(37<=$B$5,37,"") ->  | B50: =IF(37<=$B$5,$B$7,"") ->  | C50: =IF(37<=$B$5,E49*$B$4/100,"") ->  | D50: =IF(37<=$B$5,B50-C50,"") ->  | E50: =IF(37<=$B$5,E49-D50,"") -> 
A51: =IF(38<=$B$5,38,"") ->  | B51: =IF(38<=$B$5,$B$7,"") ->  | C51: =IF(38<=$B$5,E50*$B$4/100,"") ->  | D51: =IF(38<=$B$5,B51-C51,"") ->  | E51: =IF(38<=$B$5,E50-D51,"") -> 
A52: =IF(39<=$B$5,39,"") ->  | B52: =IF(39<=$B$5,$B$7,"") ->  | C52: =IF(39<=$B$5,E51*$B$4/100,"") ->  | D52: =IF(39<=$B$5,B52-C52,"") ->  | E52: =IF(39<=$B$5,E51-D52,"") -> 
A53: =IF(40<=$B$5,40,"") ->  | B53: =IF(40<=$B$5,$B$7,"") ->  | C53: =IF(40<=$B$5,E52*$B$4/100,"") ->  | D53: =IF(40<=$B$5,B53-C53,"") ->  | E53: =IF(40<=$B$5,E52-D53,"") -> 
A54: =IF(41<=$B$5,41,"") ->  | B54: =IF(41<=$B$5,$B$7,"") ->  | C54: =IF(41<=$B$5,E53*$B$4/100,"") ->  | D54: =IF(41<=$B$5,B54-C54,"") ->  | E54: =IF(41<=$B$5,E53-D54,"") -> 
A55: =IF(42<=$B$5,42,"") ->  | B55: =IF(42<=$B$5,$B$7,"") ->  | C55: =IF(42<=$B$5,E54*$B$4/100,"") ->  | D55: =IF(42<=$B$5,B55-C55,"") ->  | E55: =IF(42<=$B$5,E54-D55,"") -> 
A56: =IF(43<=$B$5,43,"") ->  | B56: =IF(43<=$B$5,$B$7,"") ->  | C56: =IF(43<=$B$5,E55*$B$4/100,"") ->  | D56: =IF(43<=$B$5,B56-C56,"") ->  | E56: =IF(43<=$B$5,E55-D56,"") -> 
A57: =IF(44<=$B$5,44,"") ->  | B57: =IF(44<=$B$5,$B$7,"") ->  | C57: =IF(44<=$B$5,E56*$B$4/100,"") ->  | D57: =IF(44<=$B$5,B57-C57,"") ->  | E57: =IF(44<=$B$5,E56-D57,"") -> 
A58: =IF(45<=$B$5,45,"") ->  | B58: =IF(45<=$B$5,$B$7,"") ->  | C58: =IF(45<=$B$5,E57*$B$4/100,"") ->  | D58: =IF(45<=$B$5,B58-C58,"") ->  | E58: =IF(45<=$B$5,E57-D58,"") -> 
A59: =IF(46<=$B$5,46,"") ->  | B59: =IF(46<=$B$5,$B$7,"") ->  | C59: =IF(46<=$B$5,E58*$B$4/100,"") ->  | D59: =IF(46<=$B$5,B59-C59,"") ->  | E59: =IF(46<=$B$5,E58-D59,"") -> 
A60: =IF(47<=$B$5,47,"") ->  | B60: =IF(47<=$B$5,$B$7,"") ->  | C60: =IF(47<=$B$5,E59*$B$4/100,"") ->  | D60: =IF(47<=$B$5,B60-C60,"") ->  | E60: =IF(47<=$B$5,E59-D60,"") -> 
A61: =IF(48<=$B$5,48,"") ->  | B61: =IF(48<=$B$5,$B$7,"") ->  | C61: =IF(48<=$B$5,E60*$B$4/100,"") ->  | D61: =IF(48<=$B$5,B61-C61,"") ->  | E61: =IF(48<=$B$5,E60-D61,"") -> 
A62: =IF(49<=$B$5,49,"") ->  | B62: =IF(49<=$B$5,$B$7,"") ->  | C62: =IF(49<=$B$5,E61*$B$4/100,"") ->  | D62: =IF(49<=$B$5,B62-C62,"") ->  | E62: =IF(49<=$B$5,E61-D62,"") -> 
A63: =IF(50<=$B$5,50,"") ->  | B63: =IF(50<=$B$5,$B$7,"") ->  | C63: =IF(50<=$B$5,E62*$B$4/100,"") ->  | D63: =IF(50<=$B$5,B63-C63,"") ->  | E63: =IF(50<=$B$5,E62-D63,"") -> 
A64: =IF(51<=$B$5,51,"") ->  | B64: =IF(51<=$B$5,$B$7,"") ->  | C64: =IF(51<=$B$5,E63*$B$4/100,"") ->  | D64: =IF(51<=$B$5,B64-C64,"") ->  | E64: =IF(51<=$B$5,E63-D64,"") -> 
A65: =IF(52<=$B$5,52,"") ->  | B65: =IF(52<=$B$5,$B$7,"") ->  | C65: =IF(52<=$B$5,E64*$B$4/100,"") ->  | D65: =IF(52<=$B$5,B65-C65,"") ->  | E65: =IF(52<=$B$5,E64-D65,"") -> 
A66: =IF(53<=$B$5,53,"") ->  | B66: =IF(53<=$B$5,$B$7,"") ->  | C66: =IF(53<=$B$5,E65*$B$4/100,"") ->  | D66: =IF(53<=$B$5,B66-C66,"") ->  | E66: =IF(53<=$B$5,E65-D66,"") -> 
A67: =IF(54<=$B$5,54,"") ->  | B67: =IF(54<=$B$5,$B$7,"") ->  | C67: =IF(54<=$B$5,E66*$B$4/100,"") ->  | D67: =IF(54<=$B$5,B67-C67,"") ->  | E67: =IF(54<=$B$5,E66-D67,"") -> 
A68: =IF(55<=$B$5,55,"") ->  | B68: =IF(55<=$B$5,$B$7,"") ->  | C68: =IF(55<=$B$5,E67*$B$4/100,"") ->  | D68: =IF(55<=$B$5,B68-C68,"") ->  | E68: =IF(55<=$B$5,E67-D68,"") -> 
A69: =IF(56<=$B$5,56,"") ->  | B69: =IF(56<=$B$5,$B$7,"") ->  | C69: =IF(56<=$B$5,E68*$B$4/100,"") ->  | D69: =IF(56<=$B$5,B69-C69,"") ->  | E69: =IF(56<=$B$5,E68-D69,"") -> 
A70: =IF(57<=$B$5,57,"") ->  | B70: =IF(57<=$B$5,$B$7,"") ->  | C70: =IF(57<=$B$5,E69*$B$4/100,"") ->  | D70: =IF(57<=$B$5,B70-C70,"") ->  | E70: =IF(57<=$B$5,E69-D70,"") -> 
A71: =IF(58<=$B$5,58,"") ->  | B71: =IF(58<=$B$5,$B$7,"") ->  | C71: =IF(58<=$B$5,E70*$B$4/100,"") ->  | D71: =IF(58<=$B$5,B71-C71,"") ->  | E71: =IF(58<=$B$5,E70-D71,"") -> 
A72: =IF(59<=$B$5,59,"") ->  | B72: =IF(59<=$B$5,$B$7,"") ->  | C72: =IF(59<=$B$5,E71*$B$4/100,"") ->  | D72: =IF(59<=$B$5,B72-C72,"") ->  | E72: =IF(59<=$B$5,E71-D72,"") -> 
A73: =IF(60<=$B$5,60,"") ->  | B73: =IF(60<=$B$5,$B$7,"") ->  | C73: =IF(60<=$B$5,E72*$B$4/100,"") ->  | D73: =IF(60<=$B$5,B73-C73,"") ->  | E73: =IF(60<=$B$5,E72-D73,"") -> 

Sheet 5 RESULTADOS
A1: TUS RESULTADOS FINANCIEROS
A2: Esta hoja no se edita (salvo los 3 parámetros de proyección): todo se calcula desde las hojas 1 a 4.
A4: Ventas del mes | B4: =N('1 PRODUCTOS'!F14)*N('1 PRODUCTOS'!F15)+N('1 PRODUCTOS'!F27)*N('1 PRODUCTOS'!F28)+N('1 PRODUCTOS'!F40)*N('1 PRODUCTOS'!F41)+N('1 PRODUCTOS'!F53)*N('1 PRODUCTOS'!F54)+N('1 PRODUCTOS'!F66)*N('1 PRODUCTOS'!F67) -> $8,400,000
A5: Margen de contribución del mes | B5: =(N('1 PRODUCTOS'!F14)-N('1 PRODUCTOS'!F13))*N('1 PRODUCTOS'!F15)+(N('1 PRODUCTOS'!F27)-N('1 PRODUCTOS'!F26))*N('1 PRODUCTOS'!F28)+(N('1 PRODUCTOS'!F40)-N('1 PRODUCTOS'!F39))*N('1 PRODUCTOS'!F41)+(N('1 PRODUCTOS'!F53)-N('1 PRODUCTOS'!F52))*N('1 PRODUCTOS'!F54)+(N('1 PRODUCTOS'!F66)-N('1 PRODUCTOS'!F65))*N('1 PRODUCTOS'!F67) -> $3,360,030
A6: Margen de contribución % | B6: =IF(B4>0,B5/B4*100,0) -> 40.0%
A7: Gastos fijos + nómina (mes) | B7: ='2 NOMINA Y GASTOS'!B29 -> $2,740,000
A8: Depreciación del mes (desgaste de equipos) | B8: ='3 ACTIVOS'!F14 -> $69,167
A9: Cuota del crédito | B9: ='4 CREDITO'!B7 -> $313,863
A10: PUNTO DE EQUILIBRIO ($ ventas/mes) | B10: =IF(B6>0,B7/(B6/100),0) -> $6,849,939
A11: Punto de equilibrio cubriendo también la cuota | B11: =IF(B6>0,(B7+B9)/(B6/100),0) -> $7,634,589
A12: CAJA del mes (margen − fijos − cuota) | B12: =B5-B7-B9 -> $306,167
A13: Utilidad contable (margen − fijos − depreciación) | B13: =B5-B7-B8 -> $550,863
A14: Inversión total | B14: ='3 ACTIVOS'!D18 -> $9,900,000
A15: Tu aporte propio (inversión − crédito) | B15: =MAX(0,B14-'4 CREDITO'!B3) -> $1,900,000
A16: Uso de tu capacidad instalada hoy | B16: =IF((N('1 PRODUCTOS'!F16)+N('1 PRODUCTOS'!F29)+N('1 PRODUCTOS'!F42)+N('1 PRODUCTOS'!F55)+N('1 PRODUCTOS'!F68))>0,(N('1 PRODUCTOS'!F15)+N('1 PRODUCTOS'!F28)+N('1 PRODUCTOS'!F41)+N('1 PRODUCTOS'!F54)+N('1 PRODUCTOS'!F67))/(N('1 PRODUCTOS'!F16)+N('1 PRODUCTOS'!F29)+N('1 PRODUCTOS'!F42)+N('1 PRODUCTOS'!F55)+N('1 PRODUCTOS'!F68))*100,"") -> 50.0%
A18: PARÁMETROS DE PROYECCIÓN (estos sí puedes editarlos):
A19: Crecimiento anual de ventas (%) | B19: 10.0
A20: Inflación anual para gastos (%) — ref. IPC 6,14 | B20: 6.14
A21: Tasa de oportunidad anual (%) | B21: 15.0
A23: PROYECCIÓN A 5 AÑOS
B24: Año 1 | C24: Año 2 | D24: Año 3 | E24: Año 4 | F24: Año 5
A25: Unidades/mes (topadas por tu capacidad) | B25: =IF((N('1 PRODUCTOS'!F16)+N('1 PRODUCTOS'!F29)+N('1 PRODUCTOS'!F42)+N('1 PRODUCTOS'!F55)+N('1 PRODUCTOS'!F68))>0,MIN((N('1 PRODUCTOS'!F15)+N('1 PRODUCTOS'!F28)+N('1 PRODUCTOS'!F41)+N('1 PRODUCTOS'!F54)+N('1 PRODUCTOS'!F67))*(1+$B$19/100)^0,(N('1 PRODUCTOS'!F16)+N('1 PRODUCTOS'!F29)+N('1 PRODUCTOS'!F42)+N('1 PRODUCTOS'!F55)+N('1 PRODUCTOS'!F68))),(N('1 PRODUCTOS'!F15)+N('1 PRODUCTOS'!F28)+N('1 PRODUCTOS'!F41)+N('1 PRODUCTOS'!F54)+N('1 PRODUCTOS'!F67))*(1+$B$19/100)^0) -> 300 | C25: =IF((N('1 PRODUCTOS'!F16)+N('1 PRODUCTOS'!F29)+N('1 PRODUCTOS'!F42)+N('1 PRODUCTOS'!F55)+N('1 PRODUCTOS'!F68))>0,MIN((N('1 PRODUCTOS'!F15)+N('1 PRODUCTOS'!F28)+N('1 PRODUCTOS'!F41)+N('1 PRODUCTOS'!F54)+N('1 PRODUCTOS'!F67))*(1+$B$19/100)^1,(N('1 PRODUCTOS'!F16)+N('1 PRODUCTOS'!F29)+N('1 PRODUCTOS'!F42)+N('1 PRODUCTOS'!F55)+N('1 PRODUCTOS'!F68))),(N('1 PRODUCTOS'!F15)+N('1 PRODUCTOS'!F28)+N('1 PRODUCTOS'!F41)+N('1 PRODUCTOS'!F54)+N('1 PRODUCTOS'!F67))*(1+$B$19/100)^1) -> 330 | D25: =IF((N('1 PRODUCTOS'!F16)+N('1 PRODUCTOS'!F29)+N('1 PRODUCTOS'!F42)+N('1 PRODUCTOS'!F55)+N('1 PRODUCTOS'!F68))>0,MIN((N('1 PRODUCTOS'!F15)+N('1 PRODUCTOS'!F28)+N('1 PRODUCTOS'!F41)+N('1 PRODUCTOS'!F54)+N('1 PRODUCTOS'!F67))*(1+$B$19/100)^2,(N('1 PRODUCTOS'!F16)+N('1 PRODUCTOS'!F29)+N('1 PRODUCTOS'!F42)+N('1 PRODUCTOS'!F55)+N('1 PRODUCTOS'!F68))),(N('1 PRODUCTOS'!F15)+N('1 PRODUCTOS'!F28)+N('1 PRODUCTOS'!F41)+N('1 PRODUCTOS'!F54)+N('1 PRODUCTOS'!F67))*(1+$B$19/100)^2) -> 363 | E25: =IF((N('1 PRODUCTOS'!F16)+N('1 PRODUCTOS'!F29)+N('1 PRODUCTOS'!F42)+N('1 PRODUCTOS'!F55)+N('1 PRODUCTOS'!F68))>0,MIN((N('1 PRODUCTOS'!F15)+N('1 PRODUCTOS'!F28)+N('1 PRODUCTOS'!F41)+N('1 PRODUCTOS'!F54)+N('1 PRODUCTOS'!F67))*(1+$B$19/100)^3,(N('1 PRODUCTOS'!F16)+N('1 PRODUCTOS'!F29)+N('1 PRODUCTOS'!F42)+N('1 PRODUCTOS'!F55)+N('1 PRODUCTOS'!F68))),(N('1 PRODUCTOS'!F15)+N('1 PRODUCTOS'!F28)+N('1 PRODUCTOS'!F41)+N('1 PRODUCTOS'!F54)+N('1 PRODUCTOS'!F67))*(1+$B$19/100)^3) -> 399 | F25: =IF((N('1 PRODUCTOS'!F16)+N('1 PRODUCTOS'!F29)+N('1 PRODUCTOS'!F42)+N('1 PRODUCTOS'!F55)+N('1 PRODUCTOS'!F68))>0,MIN((N('1 PRODUCTOS'!F15)+N('1 PRODUCTOS'!F28)+N('1 PRODUCTOS'!F41)+N('1 PRODUCTOS'!F54)+N('1 PRODUCTOS'!F67))*(1+$B$19/100)^4,(N('1 PRODUCTOS'!F16)+N('1 PRODUCTOS'!F29)+N('1 PRODUCTOS'!F42)+N('1 PRODUCTOS'!F55)+N('1 PRODUCTOS'!F68))),(N('1 PRODUCTOS'!F15)+N('1 PRODUCTOS'!F28)+N('1 PRODUCTOS'!F41)+N('1 PRODUCTOS'!F54)+N('1 PRODUCTOS'!F67))*(1+$B$19/100)^4) -> 439
A26: Margen de contribución anual | B26: =IF((N('1 PRODUCTOS'!F15)+N('1 PRODUCTOS'!F28)+N('1 PRODUCTOS'!F41)+N('1 PRODUCTOS'!F54)+N('1 PRODUCTOS'!F67))>0,$B$5*12*B25/(N('1 PRODUCTOS'!F15)+N('1 PRODUCTOS'!F28)+N('1 PRODUCTOS'!F41)+N('1 PRODUCTOS'!F54)+N('1 PRODUCTOS'!F67)),0) -> $40,320,360 | C26: =IF((N('1 PRODUCTOS'!F15)+N('1 PRODUCTOS'!F28)+N('1 PRODUCTOS'!F41)+N('1 PRODUCTOS'!F54)+N('1 PRODUCTOS'!F67))>0,$B$5*12*C25/(N('1 PRODUCTOS'!F15)+N('1 PRODUCTOS'!F28)+N('1 PRODUCTOS'!F41)+N('1 PRODUCTOS'!F54)+N('1 PRODUCTOS'!F67)),0) -> $44,352,396 | D26: =IF((N('1 PRODUCTOS'!F15)+N('1 PRODUCTOS'!F28)+N('1 PRODUCTOS'!F41)+N('1 PRODUCTOS'!F54)+N('1 PRODUCTOS'!F67))>0,$B$5*12*D25/(N('1 PRODUCTOS'!F15)+N('1 PRODUCTOS'!F28)+N('1 PRODUCTOS'!F41)+N('1 PRODUCTOS'!F54)+N('1 PRODUCTOS'!F67)),0) -> $48,787,636 | E26: =IF((N('1 PRODUCTOS'!F15)+N('1 PRODUCTOS'!F28)+N('1 PRODUCTOS'!F41)+N('1 PRODUCTOS'!F54)+N('1 PRODUCTOS'!F67))>0,$B$5*12*E25/(N('1 PRODUCTOS'!F15)+N('1 PRODUCTOS'!F28)+N('1 PRODUCTOS'!F41)+N('1 PRODUCTOS'!F54)+N('1 PRODUCTOS'!F67)),0) -> $53,666,399 | F26: =IF((N('1 PRODUCTOS'!F15)+N('1 PRODUCTOS'!F28)+N('1 PRODUCTOS'!F41)+N('1 PRODUCTOS'!F54)+N('1 PRODUCTOS'!F67))>0,$B$5*12*F25/(N('1 PRODUCTOS'!F15)+N('1 PRODUCTOS'!F28)+N('1 PRODUCTOS'!F41)+N('1 PRODUCTOS'!F54)+N('1 PRODUCTOS'!F67)),0) -> $59,033,039
A27: Gastos fijos anuales | B27: =$B$7*12*(1+$B$20/100)^0 -> $32,880,000 | C27: =$B$7*12*(1+$B$20/100)^1 -> $34,898,832 | D27: =$B$7*12*(1+$B$20/100)^2 -> $37,041,620 | E27: =$B$7*12*(1+$B$20/100)^3 -> $39,315,976 | F27: =$B$7*12*(1+$B$20/100)^4 -> $41,729,977
A28: FLUJO OPERATIVO del año | B28: =B26-B27 -> $7,440,360 | C28: =C26-C27 -> $9,453,564 | D28: =D26-D27 -> $11,746,015 | E28: =E26-E27 -> $14,350,423 | F28: =F26-F27 -> $17,303,062
A29: Cuota anual del crédito | B29: =$B$9*MIN(12,MAX(0,'4 CREDITO'!$B$5-0)) -> $3,766,354 | C29: =$B$9*MIN(12,MAX(0,'4 CREDITO'!$B$5-12)) -> $3,766,354 | D29: =$B$9*MIN(12,MAX(0,'4 CREDITO'!$B$5-24)) -> $3,766,354 | E29: =$B$9*MIN(12,MAX(0,'4 CREDITO'!$B$5-36)) -> $0 | F29: =$B$9*MIN(12,MAX(0,'4 CREDITO'!$B$5-48)) -> $0
A30: CAJA del año | B30: =B28-B29 -> $3,674,006 | C30: =C28-C29 -> $5,687,210 | D30: =D28-D29 -> $7,979,661 | E30: =E28-E29 -> $14,350,423 | F30: =F28-F29 -> $17,303,062
A31: Flujo acumulado | B31: =-$B$14+B28 -> -$2,459,640 | C31: =B31+C28 -> $6,993,924 | D31: =C31+D28 -> $18,739,939 | E31: =D31+E28 -> $33,090,363 | F31: =E31+F28 -> $50,393,425
A33: INDICADORES DEL PROYECTO
A34: Flujos para TIR (año 0 → 5): | B34: =-B14 -> -$9,900,000 | C34: =B28 -> $7,440,360 | D34: =C28 -> $9,453,564 | E34: =D28 -> $11,746,015 | F34: =E28 -> $14,350,423 | G34: =F28 -> $17,303,062
A35: VAN (valor presente neto, 5 años) | B35: =IF(B14>0,NPV(B21/100,B28:F28)-B14,"") -> $28,248,908
A36: TIR anual | B36: =IFERROR(IRR(B34:G34)*100,"no aplica") -> 91.3%
A37: Recuperas la inversión total en (meses) | B37: =IF(B14=0,"",IF(B31>=0,ROUND(B14/(B28/12),0),IF(C31>=0,12+ROUND(-B31/(C28/12),0),IF(D31>=0,24+ROUND(-C31/(D28/12),0),IF(E31>=0,36+ROUND(-D31/(E28/12),0),IF(F31>=0,48+ROUND(-E31/(F28/12),0),"más de 60")))))) -> 15
A39: ESCENARIO PESIMISTA: caja mensual si vendes −20% | B39: =B5*0.8-B7-B9 -> -$365,839
A40: ESCENARIO OPTIMISTA: caja mensual si vendes +20% | B40: =B5*1.2-B7-B9 -> $978,173

Sheet 6 REGISTRO DIARIO
A1: REGISTRO DIARIO DE INGRESOS Y EGRESOS — mes: ______
A2: Anota TODO, todos los días, separado de las cuentas de la casa. Tres meses de registro ordenado abren la puerta al crédito formal.
A4: Día | B4: ¿Qué entró? (venta, abono…) | C4: Entró $ | D4: ¿Qué salió? (compra, pago…) | E4: Salió $ | F4: Saldo
A5: 1 | F5: =N(C5)-N(E5) -> $0
A6: 2 | F6: =F5+N(C6)-N(E6) -> $0
A7: 3 | F7: $0
A8: 4 | F8: $0
A9: 5 | F9: $0
A10: 6 | F10: $0
A11: 7 | F11: $0
A12: 8 | F12: $0
A13: 9 | F13: $0
A14: 10 | F14: $0
A15: 11 | F15: $0
A16: 12 | F16: $0
A17: 13 | F17: $0
A18: 14 | F18: $0
A19: 15 | F19: $0
A20: 16 | F20: $0
A21: 17 | F21: $0
A22: 18 | F22: $0
A23: 19 | F23: $0
A24: 20 | F24: $0
A25: 21 | F25: $0
A26: 22 | F26: $0
A27: 23 | F27: $0
A28: 24 | F28: $0
A29: 25 | F29: $0
A30: 26 | F30: $0
A31: 27 | F31: $0
A32: 28 | F32: $0
A33: 29 | F33: $0
A34: 30 | F34: $0
A35: 31 | F35: $0
B36: TOTALES DEL MES: | C36: =SUM(C5:C35) -> $0 | E36: =SUM(E5:E35) -> $0 | F36: =C36-E36 -> $0
A38: Apps gratuitas que ayudan: Treinta (ventas, gastos e inventario; gratis para empezar, funciones avanzadas de pago),
A39: Nequi y Daviplata (cuentas sin costo para separar la plata del negocio). La planilla en papel también vale: lo importante es HACERLO.
